bitfinex/quotes_ETHUSD_20240703
["timestamp","ask_amount","ask_price","bid_price","bid_amount"]
[1719972830926,1.51691801,3390.5,3389.9,3.10694]
[1719972831442,1.51701605,3390.5,3389.9,3.10694]
[1719972831749,7.05021605,3390.6,3390.0,2.35987]
[1719972832142,7.05021605,3390.6,3390.1,0.747]
[1719972832822,1.51701605,3390.6,3390.1,5.7794]
[1719972833028,1.51701605,3390.6,3390.2,2.35972]
[1719972833423,1.51701605,3390.5,3390.2,2.35972]
[1719972833657,1.51701605,3390.6,3390.2,2.35972]
[1719972834029,0.51084922,3390.5,3390.2,2.35972]
[1719972834266,1.51751602,3390.5,3390.1,0.05898832]
[1719972834568,1.51763852,3390.5,3390.1,2.41878832]
[1719972834966,5.93465971,3390.4,3389.8,2.31]
[1719972835129,5.4238,3390.4,3389.9,2.35994]
[1719972835644,7.4523104,3390.3,3389.5,7.69631]
[1719972835832,2.0285104,3390.2,3389.5,2.36021]
[1719972836173,2.0285104,3390.1,3389.5,2.36021]
[1719972836386,0.51087188,3390.0,3389.6,2.36015]
[1719972836559,1.51763852,3390.1,3389.6,2.36015]
[1719972837232,1.51792695,3390.1,3389.6,2.36015]
[1719972837680,1.51792695,3389.9,3389.6,2.36015]
[1719972837844,1.51792695,3390.0,3389.4,2.36025]
[1719972838355,5.4238,3390.3,3389.5,2.36019]
[1719972838356,1.51792695,3390.1,3389.5,2.36019]
[1719972838524,1.51792695,3390.0,3389.5,2.36019]
[1719972838729,1.51792695,3390.1,3389.5,2.36019]
[1719972838930,1.51792695,3390.1,3389.6,2.41914749]
[1719972839364,1.82151234,3390.5,3389.8,5.4716]
[1719972839365,1.51792695,3390.2,3389.8,5.4716]
[1719972839676,1.51792695,3390.3,3389.6,2.36015]
[1719972839834,1.51792695,3390.2,3389.6,2.36015]
[1719972840266,1.51792695,3390.2,3389.6,2.41914868]
[1719972840549,1.51904734,3390.2,3389.6,3.69589662]
[1719972841476,1.51904734,3390.2,3389.6,1.39474525]
[1719972841678,1.51904734,3390.3,3390.1,2.35975]
[1719972841971,1.51904734,3390.4,3390.1,2.35975]
[1719972842178,1.51904734,3390.5,3390.1,2.35975]
[1719972842567,1.51904734,3390.5,3390.1,2.41873892]
[1719972842758,1.51961042,3390.5,3390.1,2.41873892]
[1719972843088,7.48,3390.6,3390.1,2.41873892]
[1719972843237,7.48,3390.6,3390.4,2.3596]
[1719972843238,8.99958096,3390.6,3390.4,2.3596]
[1719972843441,8.99958096,3390.6,3390.2,1.05020582]
[1719972843442,1.51958096,3390.9,3390.8,2.35932]
[1719972843640,7.48,3391.0,3390.8,2.35932]
[1719972843894,7.48,3391.0,3390.6,2.35944]
[1719972843895,8.8432,3390.9,3390.6,2.35944]
[1719972844046,8.8432,3390.9,3390.6,3.343264]
[1719972844477,8.8432,3390.9,3390.7,2.35938]
[1719972844782,8.8432,3390.9,3390.8,2.35932]
[1719972846152,8.8432,3390.9,3390.8,4.71864]
[1719972846948,8.8432,3390.9,3390.8,2.35932]
[1719972849882,8.8432,3390.9,3390.6,3.343264]
[1719972850122,8.8432,3390.9,3390.6,2.35944]
[1719972850260,8.8432,3390.9,3390.4,2.3596]
[1719972850261,8.8432,3390.9,3390.7,2.35938]
[1719972851983,8.8432,3390.9,3390.8,2.35932]
[1719972852769,8.8432,3390.9,3390.8,4.71864]
[1719972855964,8.8432,3390.9,3390.8,9.96774]
[1719972856189,8.8432,3390.9,3390.8,11.143814]
[1719972856482,8.61664679,3390.9,3390.8,11.143814]
[1719972856858,1.51930411,3391.4,3391.2,2.35902]
[1719972857074,1.51930411,3391.6,3391.2,2.35902]
[1719972857793,1.51930411,3391.7,3391.2,2.35902]
[1719972858094,1.51910404,3391.7,3391.3,2.35897]
[1719972858405,1.51884471,3391.7,3391.3,2.35897]
[1719972858684,1.51884471,3391.8,3391.3,2.35897]
[1719972861245,1.51841445,3391.8,3391.3,2.35897]
[1719972861888,1.51841445,3391.8,3391.4,2.3589]
[1719972862045,1.51841445,3391.9,3391.4,2.3589]
[1719972863205,1.51841445,3391.9,3391.4,2.41786916]
[1719972863401,1.51789561,3391.9,3391.4,2.3589]
[1719972863699,1.51789561,3391.9,3391.6,2.35874]
[1719972863994,1.51789561,3392.0,3391.6,2.35874]
[1719972864367,3.0,3392.2,3391.6,2.35874]
[1719972864561,1.51752847,3392.0,3391.6,2.35874]
[1719972864865,1.51752847,3392.0,3391.5,0.746]
[1719972865199,1.51752847,3392.0,3391.5,2.35878]
[1719972865406,1.51752847,3392.0,3391.5,3.10478]
[1719972866679,1.51752847,3392.0,3391.6,2.35876]
[1719972867400,1.51752847,3392.1,3391.6,2.35876]
[1719972867573,3.0,3392.3,3391.6,2.35876]
[1719972867769,1.51693337,3392.1,3391.6,2.35876]
[1719972868181,1.51692604,3392.1,3391.8,2.35861]
[1719972868384,1.51692604,3392.2,3391.8,2.35861]
[1719972868919,1.51692604,3392.3,3391.8,2.35861]
[1719972869278,6.69072604,3392.4,3391.8,2.35861]
[1719972869625,2.02754637,3392.3,3391.3,2.35897]
[1719972869831,1.51692604,3392.1,3391.5,2.35883]
[1719972870471,1.51692604,3392.1,3391.4,3.1049]
[1719972870700,3.10428,3392.3,3391.4,3.1049]
[1719972870701,1.51652016,3392.0,3391.4,3.1049]
[1719972871006,1.51656976,3392.1,3391.4,0.746]
[1719972871209,1.51656976,3392.1,3391.2,3.105]
[1719972871574,1.51656976,3392.1,3391.3,2.35896]
[1719972871874,0.5106623,3392.0,3391.3,2.35896]
[1719972872074,1.51656976,3392.1,3391.3,2.35896]
[1719972872495,0.51065371,3392.0,3391.3,2.35896]
[1719972872722,1.51656976,3392.1,3391.3,3.455485]
[1719972873006,1.51656976,3392.1,3391.4,0.746]
[1719972873209,1.51656976,3392.1,3391.5,0.05896489]
[1719972873390,1.51656976,3392.2,3391.6,3.1047]
[1719972873600,0.51062344,3392.1,3391.6,3.1047]
[1719972873796,6.69029396,3392.4,3391.8,0.746]
[1719972874019,0.51060179,3392.3,3391.8,0.746]
[1719972874182,0.51060179,3392.2,3391.8,0.746]
[1719972874372,0.51060179,3392.3,3391.8,0.746]
[1719972875898,0.51060179,3392.3,3391.5,2.35883]
[1719972876113,0.51060179,3392.3,3391.6,0.746]
[1719972876923,0.5105985,3392.2,3391.6,0.746]
[1719972877073,9.04868811,3392.4,3391.6,0.746]
[1719972877412,0.51059846,3392.3,3391.8,0.746]
[1719972877585,6.69045811,3392.4,3391.8,0.746]
[1719972877765,0.51059136,3392.3,3391.8,0.746]
[1719972877971,6.69045811,3392.4,3391.8,0.746]
[1719972878271,0.51059175,3392.3,3391.8,0.746]
[1719972878525,6.69045811,3392.4,3391.8,1.31224507]
[1719972878684,0.51059169,3392.3,3391.8,0.746]
[1719972878873,6.69045811,3392.4,3391.8,0.746]
[1719972879074,0.51059,3392.3,3391.8,0.746]
[1719972879416,6.69045811,3392.4,3391.8,0.746]
[1719972879711,0.5105895,3392.3,3391.8,0.746]
[1719972879930,7.53201,3392.4,3391.8,0.746]
[1719972880208,5.88688894,3392.3,3391.5,0.746]
[1719972880371,2.02754601,3392.2,3391.5,0.746]
[1719972880575,0.5106162,3392.1,3391.4,5.4095]
[1719972882321,2.02754601,3392.1,3391.4,5.4095]
[1719972882531,0.5106162,3392.0,3391.4,5.4095]
[1719972882817,0.5106162,3392.0,3391.4,6.486346]
[1719972883035,2.35836,3392.2,3391.4,6.486346]
[1719972883182,2.02826362,3392.1,3391.4,6.486346]
[1719972883383,0.51061801,3392.0,3391.4,6.486346]
[1719972883579,1.51764561,3392.1,3391.4,6.486346]
[1719972883817,0.51061794,3392.0,3391.5,0.8845306]
[1719972883984,1.51764561,3392.1,3391.5,0.8845306]
[1719972884337,0.51061627,3392.0,3391.5,0.8845306]
[1719972884483,2.02826188,3392.0,3391.5,0.8845306]
[1719972884682,1.51764561,3392.0,3391.6,0.89837497]
[1719972886133,7.48,3392.6,3391.7,5.54156335]
[1719972886314,1.51952534,3392.1,3391.7,5.4826]
[1719972886493,1.51952534,3392.1,3391.8,0.96242356]
[1719972886706,1.51952534,3392.2,3391.8,0.96242356]
[1719972887016,1.51952534,3392.2,3391.9,2.35856]
[1719972887180,1.51952534,3392.3,3391.6,2.35873]
[1719972887385,2.03009634,3392.2,3391.6,2.35873]
[1719972887703,1.51952534,3392.0,3391.4,7.579]
[1719972887907,1.51952534,3392.0,3391.4,8.8161]
[1719972888107,1.51952534,3391.9,3391.4,8.8161]
[1719972888618,1.51952534,3391.9,3391.4,9.09915579]
[1719972889124,2.35835,3392.2,3391.4,9.09915579]
[1719972889327,1.52044856,3391.9,3391.4,9.09915579]
[1719972889623,1.52044856,3391.8,3391.4,9.09915579]
[1719972889786,1.52044856,3391.8,3391.4,5.50315579]
[1719972890515,1.52044856,3391.8,3391.4,7.86204579]
[1719972891287,1.52044856,3391.8,3391.4,7.57899]
[1719972891486,1.52044856,3391.7,3391.4,5.2201]
[1719972892211,2.35835,3392.2,3391.4,5.2201]
[1719972892415,1.52129112,3391.7,3391.4,5.2201]
[1719972892591,2.35835,3392.2,3391.4,5.2201]
[1719972892788,1.52130819,3391.7,3391.4,5.2201]
[1719972893240,1.52130819,3391.7,3391.4,7.57899]
[1719972893387,1.52130819,3391.8,3391.4,7.57899]
[1719972893590,1.52130819,3391.8,3391.5,0.78632046]
[1719972895194,2.35825,3392.4,3391.5,0.78632046]
[1719972895399,1.52173714,3391.8,3391.6,2.3587]
[1719972895601,1.52182793,3391.9,3391.6,2.3587]
[1719972896122,1.52182793,3391.9,3391.7,2.35868]
[1719972896323,1.52182793,3391.9,3391.8,0.55038205]
[1719972897249,1.82619352,3392.1,3391.8,0.55038205]
[1719972897436,1.52219668,3392.0,3391.8,5.4256]
[1719972897944,1.82619352,3392.4,3391.8,5.4256]
[1719972897945,1.52219668,3392.1,3391.8,5.4256]
[1719972898117,1.52219668,3392.1,3391.8,7.84317929]
[1719972898312,9.83807,3392.6,3391.8,8.88305198]
[1719972898313,7.48,3392.6,3391.8,8.88305198]
[1719972898545,1.52234678,3392.1,3391.8,8.88305198]
[1719972899634,1.52234678,3392.1,3392.0,2.35849]
[1719972901532,1.82681614,3392.3,3391.5,0.78632046]
[1719972901850,1.52310816,3392.0,3391.8,2.35858]
[1719972902405,11.9693655,3392.6,3391.5,0.78632046]
[1719972902406,1.52310816,3391.9,3391.7,2.35867]
[1719972902644,1.52310816,3392.0,3391.9,7.75646]
[1719972903863,1.52317869,3392.0,3391.9,7.75646]
[1719972904215,1.52320614,3392.0,3391.9,7.75646]
[1719972905338,1.52320614,3392.1,3392.0,2.35849]
[1719972906167,7.48,3392.6,3392.0,5.82598435]
[1719972906168,1.52305893,3392.6,3392.0,5.82598435]
[1719972906329,7.48,3393.1,3392.0,5.82598435]
[1719972906330,0.59396517,3392.8,3392.7,2.358]
[1719972906653,9.30784737,3393.4,3392.9,2.35782]
[1719972906849,9.30684938,3393.4,3392.9,2.41676018]
[1719972907055,7.48,3393.4,3392.7,2.35797]
[1719972907213,1.82684938,3393.3,3392.7,2.35797]
[1719972907415,9.30684938,3393.4,3392.7,2.35797]
[1719972907712,13.03842975,3393.4,3392.5,2.35811]
[1719972908145,10.68089975,3393.4,3392.4,2.35815]
[1719972908348,1.82684938,3393.0,3392.0,2.35847]
[1719972908562,2.35801,3392.7,3391.8,2.35862]
[1719972908735,1.82684938,3392.6,3391.8,2.35862]
[1719972909052,10.66984938,3392.6,3391.8,2.35862]
[1719972909457,10.66984938,3392.6,3391.7,5.79866102]
[1719972909458,4.18498938,3392.5,3391.7,5.79866102]
[1719972909754,2.35828,3392.3,3391.5,2.35882]
[1719972909949,8.843,3392.2,3391.5,2.35882]
[1719972910312,8.843,3392.2,3391.1,5.1217]
[1719972910511,8.843,3392.2,3391.8,2.35862]
[1719972910757,8.843,3392.2,3391.9,0.05895842]
[1719972910939,8.843,3392.2,3392.0,2.90974584]
[1719972911146,8.843,3392.2,3391.8,2.35859]
[1719972911467,8.843,3392.2,3391.9,2.35855]
[1719972911611,8.843,3392.2,3392.0,2.35848]
[1719972912546,8.843,3392.2,3391.5,2.35882]
[1719972913579,1.52108459,3392.1,3391.5,2.35882]
[1719972913872,1.52108459,3392.1,3391.6,0.771778]
[1719972914241,1.52108459,3392.1,3391.6,3.130538]
[1719972914471,1.52108459,3392.1,3391.8,2.35862]
[1719972914664,10.36408459,3392.2,3391.9,2.35855]
[1719972914876,8.843,3392.2,3391.9,2.35855]
[1719972915038,8.843,3392.2,3391.9,2.91335467]
[1719972915547,8.843,3392.2,3391.9,2.35855]
[1719972915751,8.843,3392.2,3391.7,2.35866]
[1719972915932,10.36430341,3392.2,3391.7,2.35866]
[1719972916149,10.36430341,3392.2,3391.6,0.771778]
[1719972916369,1.52130341,3392.1,3391.5,2.3588]
[1719972916669,1.52130341,3392.0,3391.5,2.3588]
[1719972916836,1.52130341,3392.0,3391.6,2.35874]
[1719972917581,1.52130341,3392.0,3391.4,2.35889]
[1719972917869,1.52130341,3391.9,3391.4,2.35889]
[1719972918235,1.52130341,3391.8,3391.4,2.35889]
[1719972918735,16.33977,3392.2,3391.4,2.35889]
[1719972918935,1.52219129,3391.8,3391.4,2.35889]
[1719972920739,1.52219129,3391.9,3391.4,2.35889]
[1719972920940,1.52219129,3391.9,3391.5,0.471792]
[1719972921664,18.16639955,3392.2,3391.5,0.471792]
[1719972921665,1.52219129,3391.8,3391.5,0.471792]
[1719972921840,16.33977,3392.2,3391.5,0.471792]
[1719972922183,1.52209479,3391.9,3391.4,2.35889]
[1719972922471,18.16628375,3392.2,3391.4,2.35889]
[1719972922472,1.52209479,3391.8,3391.4,2.35889]
[1719972922690,1.52209479,3391.9,3391.4,2.35889]
[1719972923443,13.9814,3392.2,3391.5,2.35883]
[1719972923637,1.5218105,3391.9,3391.5,2.35883]
[1719972923878,1.5218105,3391.9,3391.5,2.830616]
[1719972924051,1.5218105,3391.9,3391.1,5.5406]
[1719972924383,13.9814,3392.2,3391.4,2.35884]
[1719972924543,1.52112512,3391.9,3391.5,2.35883]
[1719972925908,8.843,3392.2,3391.6,2.41772348]
[1719972926108,1.52142073,3392.0,3391.7,0.47766135]
[1719972926311,8.843,3392.2,3391.5,2.35883]
[1719972926312,1.52142073,3391.9,3391.5,2.35883]
[1719972927917,1.52142073,3391.9,3391.5,2.41779316]
[1719972928212,1.52142073,3392.0,3391.5,2.41779316]
[1719972928368,1.52142073,3392.0,3391.6,0.47767632]
[1719972928570,1.52142073,3391.9,3391.5,2.35883]
[1719972929000,1.52125756,3391.9,3391.5,2.35883]
[1719972929419,10.66850908,3392.2,3391.6,2.35876]
[1719972929420,8.843,3392.2,3391.6,2.35876]
[1719972929707,1.52129909,3391.9,3391.7,0.47766232]
[1719972929911,10.66855891,3392.2,3391.7,0.47766232]
[1719972929912,1.52129909,3392.0,3391.7,0.47766232]
[1719972930097,1.52129909,3392.0,3391.6,2.35876]
[1719972930300,1.52129909,3391.9,3391.6,2.35876]
[1719972932178,1.5214533,3391.9,3391.6,2.35876]
[1719972932379,1.52141796,3391.9,3391.6,2.35876]
[1719972933132,1.52141796,3391.9,3391.6,2.830526]
[1719972933348,1.52141796,3391.9,3391.6,2.556131]
[1719972933931,1.52141796,3392.0,3391.6,7.666431]
[1719972934500,1.52141796,3391.9,3391.6,7.666431]
[1719972934823,1.52141796,3391.9,3391.6,7.194665]
[1719972935196,1.52129954,3391.9,3391.6,7.194665]
[1719972936225,1.52129954,3391.9,3391.8,9.82754]
[1719972936406,8.843,3392.2,3391.9,2.35856]
[1719972936591,8.843,3392.2,3392.1,2.35842]
[1719972937243,8.843,3392.2,3392.1,12.01284]
[1719972937398,8.11918328,3392.2,3392.1,12.01284]
[1719972937724,7.26112328,3392.2,3392.1,12.01284]
[1719972937925,7.26112328,3392.2,3392.1,13.5482614]
[1719972938299,7.48,3393.1,3392.6,2.35806]
[1719972938635,13.1075,3393.5,3392.7,0.05894503]
[1719972938788,3.51043735,3393.4,3392.7,0.05894503]
[1719972938996,0.51043735,3393.3,3392.6,2.35806]
[1719972939427,0.51043735,3393.3,3392.7,0.05894239]
[1719972939587,3.0,3393.4,3392.8,2.35793]
[1719972941899,13.1075,3393.5,3392.9,2.41680242]
[1719972943837,7.48,3393.5,3393.0,2.35779]
[1719972945131,7.48,3393.5,3393.1,2.35772]
[1719972946030,7.48,3393.5,3393.1,4.71544]
[1719972946333,7.48,3393.5,3393.4,2.35751]
[1719972946580,7.48,3394.0,3393.5,2.3574]
[1719972946707,3.0,3393.9,3393.5,2.3574]
[1719972947832,7.48,3394.0,3393.5,2.3574]
[1719972948137,7.48,3394.0,3393.8,2.35723]
[1719972948498,7.48,3394.0,3393.9,2.35717]
[1719972948917,7.48,3394.0,3393.9,4.71434]
[1719972950833,7.48,3394.0,3393.9,4.77326379]
[1719972951737,7.48,3394.0,3393.9,4.71434]
[1719972951906,7.48,3394.0,3393.9,6.136745]
[1719972954906,6.58999999,3394.0,3393.9,6.136745]
[1719972955534,6.58999999,3394.0,3393.9,8.493915]
[1719972956317,6.58999999,3394.3,3394.2,4.71392]
[1719972957160,5.6454,3395.1,3394.7,2.35658]
[1719972959009,7.47106,3395.5,3394.7,2.35658]
[1719972959248,0.982699,3395.4,3394.7,2.35658]
[1719972961451,2.35627,3395.2,3394.4,2.3568]
[1719972961707,5.5173,3395.1,3394.4,2.3568]
[1719972962286,2.3566,3394.8,3393.8,2.35719]
[1719972962449,8.01562,3394.7,3393.9,2.35715]
[1719972962774,5.659,3394.7,3394.0,2.35709]
[1719972964539,5.659,3394.7,3393.4,5.5883]
[1719972964540,5.659,3394.7,3394.1,2.35697]
[1719972964974,5.659,3394.7,3393.7,2.35726]
[1719972965178,2.35669,3394.6,3393.8,2.35721]
[1719972965543,5.659,3394.7,3393.9,2.35714]
[1719972965742,8.01562,3394.7,3393.9,2.35714]
[1719972965974,9.052824,3394.7,3393.9,2.35714]
[1719972967060,2.35669,3394.6,3393.4,5.5883]
[1719972967262,5.187,3394.0,3393.0,2.35774]
[1719972967573,5.187,3394.0,3392.6,2.35806]
[1719972967574,0.754407,3393.9,3392.6,2.35806]
[1719972967776,0.754407,3393.9,3392.4,5.3217]
[1719972967777,5.187,3393.6,3392.4,2.3582]
[1719972968095,2.35754,3393.4,3392.6,2.35805]
[1719972968585,2.35754,3393.4,3392.7,0.235805]
[1719972968745,2.35754,3393.4,3392.6,2.35805]
[1719972968946,2.35754,3393.4,3390.4,0.92276725]
[1719972968947,11.77699999,3393.6,3391.7,6.703544]
[1719972969189,2.35758,3393.4,3392.3,2.35824]
[1719972969353,11.77699999,3393.6,3392.0,1.792]
[1719972969354,14.13438999,3393.6,3392.6,2.35804]
[1719972969555,2.35749,3393.5,3392.6,2.35804]
[1719972969749,11.77699999,3393.6,3392.6,2.35804]
[1719972969977,2.35745,3393.5,3392.6,2.35804]
[1719972972890,2.35751,3393.4,3392.4,2.594014]
[1719972973060,2.35751,3393.4,3392.4,2.35819]
[1719972973394,14.13437999,3393.6,3392.2,2.35834]
[1719972973395,2.35758,3393.3,3392.2,2.35834]
[1719972973562,2.35773,3393.1,3392.2,2.35834]
[1719972974081,2.35773,3393.1,3392.3,2.35827]
[1719972974478,2.35773,3393.1,3392.2,2.35834]
[1719972975797,2.35781,3393.0,3392.0,2.35849]
[1719972976001,2.35788,3392.9,3392.0,2.35849]
[1719972976303,2.35793,3392.8,3392.0,2.35849]
[1719972976716,2.35793,3392.8,3391.8,2.35862]
[1719972976873,2.35808,3392.6,3391.8,2.35862]
[1719972977383,2.35808,3392.6,3391.3,5.5924]
[1719972977384,2.35808,3392.6,3391.7,2.35869]
[1719972977578,2.35824,3392.4,3391.5,2.35882]
[1719972977913,2.35824,3392.4,3391.6,2.35876]
[1719972979287,2.35829,3392.3,3391.4,2.91814]
[1719972979489,5.4131,3392.1,3391.1,2.35906]
[1719972979783,5.4131,3392.1,3391.2,2.35899]
[1719972979983,5.4131,3392.1,3391.2,2.41795912]
[1719972980916,5.4131,3392.1,3391.2,2.35899]
[1719972981088,7.77152,3392.1,3391.2,2.35899]
[1719972981275,7.77152,3392.1,3391.3,0.68050474]
[1719972981614,7.77152,3392.1,3391.3,3.03947474]
[1719972981838,5.4131,3392.1,3391.5,2.35881]
[1719972982117,6.58999999,3392.2,3391.7,2.35869]
[1719972983325,2.35814,3392.5,3391.7,2.35869]
[1719972983482,2.35814,3392.5,3391.7,2.83044]
[1719972984425,24.46279999,3392.6,3391.7,2.83044]
[1719972984620,24.46279999,3392.6,3391.7,8.29174]
[1719972984621,18.75999999,3392.6,3391.7,8.29174]
[1719972985531,21.11807999,3392.6,3391.7,8.29174]
[1719972985687,21.11807999,3392.6,3391.8,1.065055]
[1719972985886,8.94807999,3392.6,3391.8,1.065055]
[1719972987132,8.94807999,3392.6,3391.8,3.423675]
[1719972987283,6.58999999,3392.6,3391.8,3.423675]
[1719972987486,6.58999999,3392.6,3391.8,3.48263516]
[1719972987723,6.58999999,3392.6,3391.9,0.64244183]
[1719972988736,8.94808999,3392.6,3391.9,0.64244183]
[1719972988912,8.94808999,3392.6,3391.8,1.065055]
[1719972989114,2.35822,3392.4,3391.4,2.35889]
[1719972989411,7.99234,3392.3,3391.4,2.35889]
[1719972989811,2.35842,3392.1,3391.3,3.03947474]
[1719972990419,2.35842,3392.1,3391.3,0.68050474]
[1719972990721,2.35856,3391.9,3391.0,2.35917]
[1719972991288,2.35863,3391.8,3391.0,2.35917]
[1719972991510,2.35863,3391.8,3391.0,2.35913]
[1719972997734,2.35863,3391.8,3390.9,5.3967]
[1719972997735,2.35849,3392.0,3391.1,2.35911]
[1719972997950,2.35849,3392.0,3391.2,0.775581]
[1719972998121,2.3586,3391.9,3391.2,0.775581]
[1719973000228,2.35865,3391.8,3391.2,0.775581]
[1719973000434,2.35865,3391.8,3390.9,5.3967]
[1719973001235,2.3586,3391.9,3390.8,2.35931]
[1719973001236,5.2516,3391.7,3390.8,2.35931]
[1719973001445,2.35876,3391.6,3390.8,2.35931]
[1719973003094,2.35876,3391.6,3390.7,0.29329463]
[1719973003298,2.35876,3391.6,3390.8,0.78716446]
[1719973003918,2.35885,3391.5,3390.8,0.78716446]
[1719973004125,2.35876,3391.6,3390.5,2.35952]
[1719973004126,2.35896,3391.4,3390.5,2.35952]
[1719973004332,2.35896,3391.4,3390.5,2.65382635]
[1719973005839,2.35896,3391.4,3390.6,2.35944]
[1719973006017,2.35896,3391.4,3390.7,0.50132664]
[1719973007279,2.35896,3391.4,3390.7,2.86069664]
[1719973008270,2.35876,3391.6,3390.7,2.86069664]
[1719973008480,2.35884,3391.5,3390.7,2.86069664]
[1719973009558,2.35884,3391.5,3390.8,2.35932]
[1719973009851,2.35884,3391.5,3390.9,0.28606466]
[1719973013883,14.20030999,3391.7,3390.9,0.28606466]
[1719973014083,11.84159999,3391.7,3391.0,2.35917]
[1719973014270,6.58999999,3391.7,3391.1,2.35909]
[1719973014474,6.58999999,3391.7,3391.2,0.50633]
[1719973015752,6.58999999,3391.7,3391.1,2.35909]
[1719973017665,6.58999999,3391.7,3390.8,7.95921]
[1719973017866,6.24928966,3391.6,3390.8,2.35931]
[1719973018181,2.35885,3391.5,3390.6,2.35941]
[1719973018339,2.35885,3391.5,3390.6,3.391299]
[1719973018540,2.35885,3391.5,3390.7,2.35939]
[1719973018764,0.51070215,3391.4,3390.7,2.35939]
[1719973018993,8.60828215,3391.3,3390.0,7.95976]
[1719973019204,2.35919,3391.0,3390.0,7.95976]
[1719973019422,0.51070215,3390.9,3390.0,7.95976]
[1719973019918,2.35919,3391.0,3390.1,2.35981]
[1719973020116,0.51080402,3390.9,3390.1,2.35981]
[1719973020276,2.35919,3391.0,3390.2,2.35972]
[1719973020473,0.51079232,3390.9,3390.3,0.795962]
[1719973020819,2.35919,3391.0,3390.3,0.795962]
[1719973023155,2.35905,3391.2,3390.3,0.795962]
[1719973023347,2.35892,3391.4,3390.3,0.795962]
[1719973023348,0.51077011,3391.1,3390.6,5.4574]
[1719973023639,3.0,3391.5,3390.8,2.35932]
[1719973023799,0.51071727,3391.4,3390.8,2.35932]
[1719973024002,6.58999999,3391.7,3391.1,2.35911]
[1719973024202,6.58999999,3391.7,3390.7,2.90513]
[1719973024441,6.58999999,3391.7,3390.8,2.35931]
[1719973024601,6.58660263,3391.7,3390.8,2.35931]
[1719973025001,8.94532263,3391.7,3390.8,2.35931]
[1719973025304,8.94531263,3391.7,3390.9,2.35924]
[1719973026129,8.94531263,3391.7,3390.9,3.431417]
[1719973026547,6.58660263,3391.7,3390.9,3.431417]
[1719973027659,6.58660263,3391.7,3391.1,2.35911]
[1719973027825,14.71250263,3392.0,3391.1,2.35911]
[1719973028028,0.51065855,3391.9,3391.1,2.35911]
[1719973028230,0.51065739,3391.8,3391.2,0.44587257]
[1719973028530,14.71250263,3392.0,3391.2,0.44587257]
[1719973028761,0.51065302,3391.9,3391.2,0.44587257]
[1719973028938,14.71250263,3392.0,3391.2,2.80491257]
[1719973029140,0.51065409,3391.9,3391.2,2.80491257]
[1719973029502,14.71250263,3392.0,3391.2,2.80491257]
[1719973029647,0.51064948,3391.9,3391.3,5.23428326]
[1719973029827,12.35400263,3392.0,3391.4,2.3589]
[1719973033083,12.35400263,3392.0,3391.5,2.35883]
[1719973033263,12.29100263,3392.4,3391.4,0.82529874]
[1719973033482,6.58660263,3392.4,3391.9,2.35855]
[1719973036698,12.17,3392.7,3392.4,2.35819]
[1719973036907,5.5033,3393.1,3392.4,2.35819]
[1719973037135,6.05363,3393.1,3392.4,2.35819]
[1719973038099,3.0,3393.0,3392.4,2.35819]
[1719973040500,3.0,3393.0,3391.9,2.3585]
[1719973040708,2.35786,3392.9,3392.1,2.35835]
[1719973040913,3.0,3393.0,3392.3,2.35824]
[1719973041318,3.0,3393.0,3392.4,2.3582]
[1719973041532,3.0,3393.0,3392.5,2.35813]
[1719973042329,5.5033,3393.1,3392.5,2.35813]
[1719973044039,6.58660263,3393.2,3392.5,2.35813]
[1719973044239,3.0,3393.1,3392.5,2.35813]
[1719973046014,6.58660263,3393.2,3392.6,2.35806]
[1719973046201,5.5483,3393.4,3392.7,2.35799]
[1719973046400,3.0,3393.3,3392.4,5.2101]
[1719973046601,5.5483,3393.4,3392.8,2.35792]
[1719973049531,6.58660263,3393.5,3392.8,2.35792]
[1719973049840,3.0,3393.4,3392.8,2.35792]
[1719973050538,3.0,3393.4,3392.9,2.35786]
[1719973050989,3.0,3393.4,3392.9,0.471593]
[1719973051190,3.0,3393.4,3393.1,2.35772]
[1719973051712,5.3668,3393.7,3392.8,2.35792]
[1719973051913,3.0,3393.6,3392.8,2.35792]
[1719973052819,3.0,3393.6,3392.8,2.35452264]
[1719973053055,5.35739,3393.6,3392.8,2.35452264]
[1719973053229,1.308147,3393.5,3392.8,2.35452264]
[1719973055066,1.308147,3393.5,3392.8,1.94287464]
[1719973057871,1.308147,3393.5,3392.4,5.2101]
[1719973057872,2.35765,3393.2,3392.4,2.35814]
[1719973058066,2.35754,3393.4,3392.5,2.35813]
[1719973059059,3.0,3393.6,3392.7,2.35797]
[1719973059265,4.80651796,3393.6,3392.7,2.35797]
[1719973059738,0.51042776,3393.5,3392.7,2.35797]
[1719973059940,4.80651796,3393.6,3392.7,2.35797]
[1719973060574,2.8678766,3393.5,3392.7,2.35797]
[1719973060894,0.51043856,3393.4,3392.7,2.35797]
[1719973061044,8.8415,3393.4,3392.7,2.35797]
[1719973061838,11.68923916,3393.4,3392.5,2.35813]
[1719973062039,2.35763,3393.3,3392.5,2.35813]
[1719973062250,14.156,3393.2,3392.5,2.35813]
[1719973063221,0.51048396,3393.1,3392.3,2.35826]
[1719973063503,8.8415,3393.0,3392.3,2.35826]
[1719973063786,8.8415,3393.0,3392.4,2.35821]
[1719973064082,8.8415,3393.0,3392.4,2.35815]
[1719973065355,8.8415,3393.0,3392.5,2.35814]
[1719973065600,8.8415,3393.0,3392.6,2.35806]
[1719973065755,8.8415,3393.0,3392.6,8.33718114]
[1719973066592,8.8415,3393.0,3392.8,2.35787]
[1719973068479,8.8415,3393.0,3392.5,2.35814]
[1719973072714,8.8415,3393.0,3392.4,5.6894]
[1719973073007,8.8415,3393.0,3392.1,5.6894]
[1719973073213,5.4298,3392.8,3391.9,2.35851]
[1719973073526,9.3519646,3392.7,3391.5,8.04823]
[1719973073822,2.3582,3392.5,3391.6,2.35875]